fUSD/lending_fUSD_20250812
["ID","MTS","AMOUNT","RATE_DAILY","PERIOD"]
[378757882,1755003110984,-400.0,0.00043835,120]
[378757883,1755003110994,-400.0,0.00043835,120]
[378757884,1755003111004,-400.0,0.00043835,120]
[378757885,1755003111014,-400.0,0.00043835,120]
[378757886,1755003111023,-400.0,0.00043835,120]
[378757887,1755003111033,-400.0,0.00043835,120]
[378757888,1755003111043,-400.0,0.00043835,120]
[378757889,1755003111053,-508.07400925,0.00043835,120]
[378757890,1755003111063,-552.24,0.00043835,120]
[378757891,1755003111073,-400.0,0.00043835,120]
[378757892,1755003111082,-411.53,0.00043835,120]
[378757893,1755003111092,-400.0,0.00043835,120]
[378757894,1755003111102,-400.0,0.00043835,120]
[378757895,1755003111112,-400.0,0.00043835,120]
[378757896,1755003111122,-400.0,0.00043835,120]
[378757897,1755003111132,-687.38,0.00043835,120]
[378757898,1755003111141,-400.0,0.00043835,120]
[378757899,1755003111151,-400.0,0.00043835,120]
[378757900,1755003111161,-400.0,0.00043835,120]
[378757901,1755003111171,-400.0,0.00043835,120]
[378757902,1755003111181,-648.2,0.00043835,120]
[378757903,1755003111191,-400.0,0.00043835,120]
[378757904,1755003111201,-400.0,0.00043835,120]
[378757905,1755003111210,-400.0,0.00043835,120]
[378757906,1755003111220,-400.0,0.00043835,120]
[378757907,1755003111229,-400.0,0.00043835,120]
[378757908,1755003111239,-400.0,0.00043835,120]
[378757909,1755003111251,-400.0,0.00043835,120]
[378757910,1755003111271,-400.0,0.00043835,120]
[378757911,1755003111284,-424.7,0.00043835,120]
[378757912,1755003111293,-541.9,0.00043835,120]
[378757913,1755003111304,-268.653618,0.00043835,120]
[378757914,1755003111314,-400.0,0.00043835,120]
[378757915,1755003111323,-565.63,0.00043835,120]
[378757916,1755003111333,-400.0,0.00043835,120]
[378757917,1755003111342,-400.0,0.00043835,120]
[378757918,1755003111352,-592.88,0.00043835,120]
[378757919,1755003111361,-4791.08,0.00043835,120]
[378757920,1755003111371,-400.0,0.00043835,120]
[378757921,1755003111380,-400.0,0.00043835,120]
[378757922,1755003111390,-158.13740423,0.00043835,120]
[378757923,1755003111399,-400.0,0.00043835,120]
[378757924,1755003111409,-475.4,0.00043835,120]
[378757925,1755003111418,-421.82,0.00043835,120]
[378757926,1755003111428,-400.0,0.00043835,120]
[378757927,1755003111437,-400.0,0.00043835,30]
[378757928,1755003111447,-157.703964,0.00043835,120]
[378757929,1755003111457,-275.36456,0.00043835,120]
[378757930,1755003111466,-432.57,0.00043835,120]
[378757931,1755003111475,-315.48415573,0.00043835,120]
[378757932,1755003111485,-419.5,0.00043835,120]
[378757933,1755003111495,-400.0,0.00043835,120]
[378757934,1755003111504,-400.0,0.00043835,120]
[378757935,1755003111514,-400.0,0.00043835,120]
[378757936,1755003111523,-400.0,0.00043835,120]
[378757937,1755003111533,-400.0,0.00043835,120]
[378757938,1755003111542,-400.0,0.00043835,120]
[378757939,1755003111552,-400.0,0.00043835,120]
[378757940,1755003111563,-500.94,0.00043835,120]
[378757941,1755003111572,-400.0,0.00043835,120]
[378757942,1755003111582,-649.81,0.00043835,120]
[378757943,1755003111592,-160.17271666,0.00043835,120]
[378757944,1755003111602,-400.0,0.00043835,120]
[378757945,1755003111612,-400.0,0.00043835,120]
[378757946,1755003111621,-400.0,0.00043835,120]
[378757947,1755003111632,-400.0,0.00043835,120]
[378757948,1755003111643,-400.0,0.00043835,120]
[378757949,1755003111653,-41.00072179,0.00043835,120]
[378757950,1755003112577,-475.4430667,0.00039378,3]
[378757951,1755003112589,-412.5569333,0.00039378,3]
[378757952,1755003112598,-400.0,0.00041095,30]
[378757953,1755003112608,-400.0,0.00041095,30]
[378757954,1755003112617,-400.0,0.00041369,30]
[378757955,1755003112628,-208.8570667,0.00041369,30]
[378757956,1755003112757,-191.1429333,0.00041369,30]
[378757957,1755003112766,-1776.0,0.00041618,3]
[378757958,1755003112776,-400.0,0.00041643,30]
[378757959,1755003112786,-400.0,0.00041643,30]
[378757960,1755003112796,-400.0,0.00041917,30]
[378757961,1755003112806,-358.99927821,0.00043835,120]
[378757962,1755003112815,-656.69,0.00043835,120]
[378757963,1755003112825,-469.11,0.00043835,120]
[378757964,1755003112835,-426.91,0.00043835,120]
[378757965,1755003112844,-400.0,0.00043835,120]
[378757966,1755003112855,-400.0,0.00043835,120]
[378757967,1755003112864,-400.0,0.00043835,120]
[378757968,1755003112874,-400.0,0.00043835,120]
[378757969,1755003112884,-400.0,0.00043835,120]
[378757970,1755003112894,-400.0,0.00043835,120]
[378757971,1755003112903,-400.0,0.00043835,120]
[378757972,1755003112913,-407.69,0.00043835,120]
[378757973,1755003112922,-400.0,0.00043835,120]
[378757974,1755003112931,-400.0,0.00043835,120]
[378757975,1755003112940,-643.28,0.00043835,120]
[378757976,1755003112950,-400.0,0.00043835,120]
[378757977,1755003112959,-425.08,0.00043835,120]
[378757978,1755003112968,-400.0,0.00043835,120]
[378757979,1755003112977,-400.0,0.00043835,120]
[378757980,1755003112986,-400.0,0.00043835,120]
[378757981,1755003112995,-400.0,0.00043835,120]
[378757982,1755003113004,-506.96560203,0.00043835,120]
[378757983,1755003113014,-400.0,0.00043835,120]
[378757984,1755003113024,-400.0,0.00043835,120]
[378757985,1755003113033,-485.48,0.00043835,120]
[378757986,1755003113043,-400.0,0.00043835,120]
[378757987,1755003113052,-400.0,0.00043835,120]
[378757988,1755003113063,-620.11,0.00043835,120]
[378757989,1755003113072,-422.97,0.00043835,120]
[378757990,1755003113081,-400.0,0.00043835,120]
[378757991,1755003113090,-407.76,0.00043835,120]
[378757992,1755003113100,-484.27,0.00043835,120]
[378757993,1755003113109,-400.0,0.00043835,120]
[378757994,1755003113118,-227.73878701,0.00043835,120]
[378757995,1755003113127,-400.0,0.00043835,120]
[378757996,1755003113136,-400.0,0.00043835,120]
[378757997,1755003113145,-400.0,0.00043835,120]
[378757998,1755003113154,-473.91,0.00043835,120]
[378757999,1755003113163,-400.0,0.00043835,120]
[378758000,1755003113173,-429.54,0.00043835,120]
[378758001,1755003113182,-400.0,0.00043835,120]
[378758002,1755003113191,-400.0,0.00043835,120]
[378758003,1755003113201,-400.0,0.00043835,120]
[378758004,1755003113210,-2095.41,0.00043835,120]
[378758005,1755003113219,-400.0,0.00043835,120]
[378758006,1755003113228,-400.0,0.00043835,120]
[378758007,1755003113238,-803.63,0.00043835,120]
[378758008,1755003113247,-403.57,0.00043835,120]
[378758009,1755003113256,-432.23,0.00043835,120]
[378758010,1755003113265,-400.0,0.00043835,120]
[378758011,1755003113274,-400.0,0.00043835,120]
[378758012,1755003113283,-400.0,0.00043835,120]
[378758013,1755003113292,-462.00101489,0.00043835,120]
[378758014,1755003113302,-400.0,0.00043835,120]
[378758015,1755003113312,-400.0,0.00043835,120]
[378758016,1755003113321,-403.73,0.00043835,120]
[378758017,1755003113330,-506.69,0.00043835,120]
[378758018,1755003113339,-400.0,0.00043835,120]
[378758019,1755003113348,-400.0,0.00043835,120]
[378758020,1755003113358,-400.0,0.00043835,120]
[378758021,1755003113367,-400.0,0.00043835,120]
[378758022,1755003113376,-1369.1,0.00043835,120]
[378758023,1755003113386,-460.46,0.00043835,120]
[378758024,1755003113395,-1677.37,0.00043835,120]
[378758025,1755003113404,-400.0,0.00043835,120]
[378758026,1755003113414,-400.0,0.00043835,120]
[378758027,1755003113423,-638.32,0.00043835,120]
[378758028,1755003113432,-400.0,0.00043835,120]
[378758029,1755003113441,-400.0,0.00043835,120]
[378758030,1755003113451,-557.52,0.00043835,120]
[378758031,1755003113461,-720.04,0.00043835,120]
[378758032,1755003113470,-400.0,0.00043835,120]
[378758033,1755003113479,-1407.52,0.00043835,120]
[378758034,1755003113488,-400.0,0.00043835,120]
[378758035,1755003113498,-400.0,0.00043835,120]
[378758036,1755003113507,-671.93,0.00043835,120]
[378758037,1755003113517,-535.29,0.00043835,120]
[378758038,1755003113526,-400.0,0.00043835,120]
[378758039,1755003113535,-400.0,0.00043835,120]
[378758040,1755003113544,-537.89,0.00043835,120]
[378758041,1755003113553,-519.49,0.00043835,120]
[378758042,1755003113564,-641.09,0.00043835,120]
[378758043,1755003113573,-697.03,0.00043835,120]
[378758044,1755003113583,-740.0,0.00043835,120]
[378758045,1755003113592,-400.0,0.00043835,120]
[378758046,1755003113602,-494.78,0.00043835,120]
[378758047,1755003113611,-400.0,0.00043835,120]
[378758048,1755003113621,-400.0,0.00043835,120]
[378758049,1755003113631,-400.0,0.00043835,120]
[378758050,1755003113641,-695.15,0.00043835,120]
[378758051,1755003113650,-400.0,0.00043835,120]
[378758052,1755003113660,-595.64,0.00043835,120]
[378758053,1755003113670,-705.13,0.00043835,120]
[378758054,1755003113679,-340.08974548,0.00043835,120]
[378758055,1755003113689,-715.11,0.00043835,120]
[378758056,1755003113698,-469.65,0.00043835,120]
[378758057,1755003113708,-400.0,0.00043835,120]
[378758058,1755003113717,-400.0,0.00043835,120]
[378758059,1755003113726,-400.0,0.00043835,120]
[378758060,1755003113736,-832.68,0.00043835,120]
[378758061,1755003113745,-376.19242931,0.00043835,120]
[378758062,1755003113755,-447.93847873,0.00043835,120]
[378758063,1755003113764,-549.29,0.00043835,120]
[378758064,1755003113773,-626.92,0.00043835,120]
[378758065,1755003113782,-400.0,0.00043835,60]
[378758066,1755003113791,-400.0,0.00043835,120]
[378758067,1755003113802,-435.17,0.00043835,120]
[378758068,1755003113813,-400.0,0.00043835,120]
[378758069,1755003113823,-400.0,0.00043835,120]
[378758070,1755003113833,-400.0,0.00043835,120]
[378758071,1755003113842,-747.94,0.00043835,120]
[378758072,1755003113851,-287.56803011,0.00043835,120]
[378758073,1755003113860,-400.0,0.00043835,120]
[378758074,1755003113870,-400.0,0.00043835,120]
[378758075,1755003113879,-400.0,0.00043835,120]
[378758076,1755003113888,-508.17,0.00043835,120]
[378758077,1755003113897,-400.0,0.00043835,120]
[378758078,1755003113906,-400.0,0.00043835,120]
[378758079,1755003113916,-400.0,0.00043835,120]
[378758080,1755003113925,-493.89,0.00043835,120]
[378758081,1755003113934,-400.0,0.00043835,120]
[378758082,1755003113943,-400.0,0.00043835,120]
[378758083,1755003113952,-569.03,0.00043835,120]
[378758084,1755003113961,-400.0,0.00043835,120]
[378758085,1755003113970,-1304.68,0.00043835,120]
[378758086,1755003113980,-472.71,0.00043835,120]
[378758087,1755003113988,-400.0,0.00043835,120]
[378758088,1755003113998,-485.21,0.00043835,120]
[378758089,1755003114007,-242.36722881,0.00043835,120]
[378758090,1755003114016,-1427.73,0.00043835,120]
[378758091,1755003114025,-400.0,0.00043835,120]
[378758092,1755003114035,-400.0,0.00043835,120]
[378758093,1755003114044,-400.0,0.00043835,120]
[378758094,1755003114053,-400.0,0.00043835,120]
[378758095,1755003114064,-400.0,0.00043835,120]
[378758096,1755003114074,-400.0,0.00043835,120]
[378758097,1755003114083,-668.75,0.00043835,120]
[378758098,1755003114093,-400.0,0.00043835,120]
[378758099,1755003114103,-400.0,0.00043835,120]
[378758100,1755003114113,-531.92299751,0.00043835,120]
[378758101,1755003114123,-1550.59,0.00043835,120]
[378758102,1755003114132,-400.0,0.00043835,120]
[378758103,1755003114141,-400.0,0.00043835,120]
[378758104,1755003114150,-315.88054514,0.00043835,120]
[378758105,1755003114160,-2263.04,0.00043835,120]
[378758106,1755003114169,-801.81,0.00043835,120]
[378758107,1755003114178,-517.14,0.00043835,120]
[378758108,1755003114187,-400.0,0.00043835,120]
[378758109,1755003114197,-1000.0,0.00043835,2]
[378758110,1755003114206,-416.76,0.00043835,120]
[378758111,1755003114215,-606.34,0.00043835,7]
[378758112,1755003114224,-542.24,0.00043835,120]
[378758113,1755003114233,-1058.21,0.00043835,120]
[378758114,1755003114243,-400.0,0.00043835,120]
[378758115,1755003114252,-463.53,0.00043835,120]
[378758116,1755003114261,-400.0,0.00043835,120]
[378758117,1755003114270,-400.0,0.00043835,120]
[378758118,1755003114280,-400.0,0.00043835,120]
[378758119,1755003114289,-661.34,0.00043835,120]
[378758120,1755003114299,-400.0,0.00043835,120]
[378758121,1755003114311,-453.89,0.00043835,120]
[378758122,1755003114320,-3468.76,0.00043835,120]
[378758123,1755003114329,-747.81,0.00043835,120]
[378758124,1755003114339,-413.27,0.00043835,120]
[378758125,1755003114348,-689.53,0.00043835,120]
[378758126,1755003114357,-567.5,0.00043835,120]
[378758127,1755003114366,-414.54,0.00043835,120]
[378758128,1755003114376,-400.0,0.00043835,120]
[378758129,1755003114385,-3359.66,0.00043835,120]
[378758130,1755003114394,-400.0,0.00043835,120]
[378758131,1755003114404,-400.0,0.00043835,120]
[378758132,1755003114413,-449.21,0.00043835,120]
[378758133,1755003114423,-704.22,0.00043835,120]
[378758134,1755003114433,-400.0,0.00043835,120]
[378758135,1755003114442,-400.0,0.00043835,120]
[378758136,1755003114451,-400.0,0.00043835,120]
[378758137,1755003114462,-632.29,0.00043835,120]
[378758138,1755003114472,-466.87,0.00043835,120]
[378758139,1755003114481,-494.37,0.00043835,120]
[378758140,1755003114491,-400.0,0.00043835,120]
[378758141,1755003114500,-400.0,0.00043835,120]
[378758142,1755003114510,-601.38,0.00043835,120]
[378758143,1755003114519,-400.0,0.00043835,120]
[378758144,1755003114529,-400.0,0.00043835,120]
[378758145,1755003114538,-710.1,0.00043835,120]
[378758146,1755003114548,-400.0,0.00043835,120]
[378758147,1755003114559,-400.0,0.00043835,120]
[378758148,1755003114568,-400.0,0.00043835,120]
[378758149,1755003114578,-929.42,0.00043835,120]
[378758150,1755003114587,-400.0,0.00043835,120]
[378758151,1755003114596,-654.03,0.00043835,120]
[378758152,1755003114606,-400.0,0.00043835,120]
[378758153,1755003114615,-400.0,0.00043835,120]
[378758154,1755003114625,-683.7,0.00043835,120]
[378758155,1755003114637,-727.2,0.00043835,120]
[378758156,1755003114646,-1130.55,0.00043835,120]
[378758157,1755003114656,-400.0,0.00043835,120]
[378758158,1755003114666,-400.0,0.00043835,120]
[378758159,1755003114675,-400.0,0.00043835,120]
[378758160,1755003114686,-693.76,0.00043835,120]
[378758161,1755003114696,-400.0,0.00043835,120]
[378758162,1755003114706,-2521.4,0.00043835,120]
[378758163,1755003114716,-765.99,0.00043835,120]
[378758164,1755003114726,-408.27,0.00043835,120]
[378758165,1755003114736,-400.0,0.00043835,120]
[378758166,1755003114746,-674.11,0.00043835,120]
[378758167,1755003114755,-463.15,0.00043835,120]
[378758168,1755003114765,-515.85,0.00043835,120]
[378758169,1755003114775,-400.0,0.00043835,14]
[378758170,1755003114786,-400.0,0.00043835,120]
[378758171,1755003114797,-400.0,0.00043835,120]
[378758172,1755003114809,-726.38,0.00043835,120]
[378758173,1755003114819,-400.0,0.00043835,120]
[378758174,1755003114830,-400.0,0.00043835,120]
[378758175,1755003114840,-1713.36,0.00043835,120]
[378758176,1755003114850,-564.91,0.00043835,120]
[378758177,1755003114861,-576.83,0.00043835,120]
[378758178,1755003114871,-622.29,0.00043835,120]
[378758179,1755003114880,-461.85,0.00043835,120]
[378758180,1755003114890,-558.07,0.00043835,120]
[378758181,1755003114901,-400.0,0.00043835,120]
[378758182,1755003114910,-400.0,0.00043835,120]
[378758183,1755003114919,-400.0,0.00043835,120]
[378758184,1755003114929,-400.0,0.00043835,120]
[378758185,1755003114938,-400.0,0.00043835,120]
[378758186,1755003114948,-756.4,0.00043835,120]
[378758187,1755003114957,-400.0,0.00043835,120]
[378758188,1755003114967,-471.31,0.00043835,120]
[378758189,1755003114976,-462.1,0.00043835,120]
[378758190,1755003114986,-400.0,0.00043835,120]
[378758191,1755003114995,-400.0,0.00043835,120]
[378758192,1755003115006,-555.74,0.00043835,120]
[378758193,1755003115016,-740.93,0.00043835,120]
[378758194,1755003115027,-440.15,0.00043835,120]
[378758195,1755003115038,-400.0,0.00043835,120]
[378758196,1755003115047,-413.22,0.00043835,120]
[378758197,1755003115060,-400.0,0.00043835,120]
[378758198,1755003115070,-1776.0,0.00043835,3]
[378758199,1755003115228,-500.0,0.00043836,5]
[378758200,1755003115238,-168.0,0.00043839,2]
[378758201,1755003115247,-2000.0,0.00043888,3]
[378758202,1755003115256,-2000.0,0.00043888,3]
[378758203,1755003115266,-1039.898,0.00043888,3]
[378758204,1755003115275,-2000.0,0.00043888,3]
[378758205,1755003115286,-154.2516406,0.00043894,15]
[378758206,1755003115295,-178.95,0.000439,30]
[378758207,1755003115305,-154.0,0.000439,120]
[378758208,1755003115317,-334.53,0.000439,7]
[378758209,1755003115326,-212.0,0.0004391,30]
[378758210,1755003115335,-317.76,0.00044,30]
[378758211,1755003115344,-1350.26258322,0.00044009,2]
[378758212,1755003115353,-597.51,0.00044107,120]
[378758213,1755003115363,-1071.3,0.00044108,120]
[378758214,1755003115372,-1071.3,0.00044108,120]
[378758215,1755003115382,-1071.3,0.00044108,120]
[378758216,1755003115392,-1071.3,0.00044108,120]
[378758217,1755003115401,-1071.42684203,0.00044108,120]
[378758218,1755003115411,-500.0,0.00044108,120]
[378758219,1755003115422,-737.87,0.00044108,120]
[378758220,1755003115431,-737.87,0.00044108,120]
[378758221,1755003115441,-737.87,0.00044108,120]
[378758222,1755003115450,-737.87,0.00044108,120]
[378758223,1755003115459,-737.98,0.00044108,120]
[378758224,1755003115469,-1894.03,0.00044108,120]
[378758225,1755003115478,-1894.03,0.00044108,120]
[378758226,1755003115487,-1894.03,0.00044108,120]
[378758227,1755003115496,-1894.03,0.00044108,120]
[378758228,1755003115506,-1894.22042856,0.00044108,120]
[378758229,1755003115516,-400.0,0.00044109,120]
[378758230,1755003115525,-400.0,0.00044109,120]
[378758231,1755003115535,-400.0,0.00044109,120]
[378758232,1755003115544,-400.0,0.00044109,120]
[378758233,1755003115553,-646.53,0.00044109,120]
[378758234,1755003115566,-400.0,0.00044109,120]
[378758235,1755003115575,-400.0,0.00044109,120]
[378758236,1755003115585,-400.0,0.00044109,120]
[378758237,1755003115594,-400.0,0.00044109,120]
[378758238,1755003115604,-294.54109179,0.00044109,120]
[378758239,1755003115613,-400.0,0.00044109,120]
[378758240,1755003115624,-400.0,0.00044109,120]
[378758241,1755003115636,-400.0,0.00044109,120]
[378758242,1755003115646,-400.0,0.00044109,120]
[378758243,1755003115655,-552.24,0.00044109,120]
[378758244,1755003115665,-400.0,0.00044109,120]
[378758245,1755003115675,-400.0,0.00044109,120]
[378758246,1755003115686,-400.0,0.00044109,120]
[378758247,1755003115696,-400.0,0.00044109,120]
[378758248,1755003115706,-400.0,0.00044109,120]
[378758249,1755003115715,-687.38,0.00044109,120]
[378758250,1755003115725,-400.0,0.00044109,120]
[378758251,1755003115735,-400.0,0.00044109,120]
[378758252,1755003115744,-400.0,0.00044109,120]
[378758253,1755003115754,-648.2,0.00044109,120]
[378758254,1755003115763,-400.0,0.00044109,120]
[378758255,1755003115773,-400.0,0.00044109,120]
[378758256,1755003115783,-400.0,0.00044109,120]
[378758257,1755003115792,-209.31432114,0.00044109,120]
[378758258,1755003115801,-400.0,0.00044109,120]
[378758259,1755003115814,-400.0,0.00044109,120]
[378758260,1755003115823,-400.0,0.00044109,120]
[378758261,1755003115833,-400.0,0.00044109,120]
[378758262,1755003115843,-424.7,0.00044109,120]
[378758263,1755003115852,-541.9,0.00044109,120]
[378758264,1755003115861,-268.653618,0.00044109,120]
[378758265,1755003115871,-277.19,0.00044109,120]
[378758266,1755003115880,-565.63,0.00044109,120]
[378758267,1755003115891,-260.49,0.00044109,120]
[378758268,1755003115900,-400.0,0.00044109,120]
[378758269,1755003115910,-592.88,0.00044109,120]
[378758270,1755003115919,-4791.08,0.00044109,120]
[378758271,1755003115928,-194.98273625,0.00044109,120]
[378758272,1755003115937,-227.91,0.00044109,120]
[378758273,1755003115947,-400.0,0.00044109,120]
[378758274,1755003115957,-475.4,0.00044109,120]
[378758275,1755003115968,-421.82,0.00044109,120]
[378758276,1755003115978,-400.0,0.00044109,120]
[378758277,1755003115987,-400.0,0.00044109,30]
[378758278,1755003115996,-157.703964,0.00044109,120]
[378758279,1755003116006,-275.36456,0.00044109,120]
[378758280,1755003116015,-432.57,0.00044109,120]
[378758281,1755003116024,-419.5,0.00044109,120]
[378758282,1755003116034,-400.0,0.00044109,120]
[378758283,1755003116044,-400.0,0.00044109,120]
[378758284,1755003116054,-400.0,0.00044109,120]
[378758285,1755003116064,-400.0,0.00044109,120]
[378758286,1755003116073,-400.0,0.00044109,120]
[378758287,1755003116083,-400.0,0.00044109,120]
[378758288,1755003116092,-400.0,0.00044109,120]
[378758289,1755003116102,-500.94,0.00044109,120]
[378758290,1755003116112,-400.0,0.00044109,120]
[378758291,1755003116121,-649.81,0.00044109,120]
[378758292,1755003116131,-400.0,0.00044109,120]
[378758293,1755003116140,-400.0,0.00044109,120]
[378758294,1755003116150,-400.0,0.00044109,120]
[378758295,1755003116160,-400.0,0.00044109,120]
[378758296,1755003116169,-400.0,0.00044109,120]
[378758297,1755003116179,-400.0,0.00044109,120]
[378758298,1755003116189,-656.69,0.00044109,120]
[378758299,1755003116199,-469.11,0.00044109,120]
[378758300,1755003116209,-426.91,0.00044109,120]
[378758301,1755003116218,-400.0,0.00044109,120]
[378758302,1755003116227,-400.0,0.00044109,120]
[378758303,1755003116237,-400.0,0.00044109,120]
[378758304,1755003116246,-400.0,0.00044109,120]
[378758305,1755003116256,-400.0,0.00044109,120]
[378758306,1755003116266,-400.0,0.00044109,120]
[378758307,1755003116276,-400.0,0.00044109,120]
[378758308,1755003116286,-407.69,0.00044109,120]
[378758309,1755003116295,-400.0,0.00044109,120]
[378758310,1755003116306,-643.28,0.00044109,120]
[378758311,1755003116315,-400.0,0.00044109,120]
[378758312,1755003116325,-400.0,0.00044109,120]
[378758313,1755003116335,-425.08,0.00044109,120]
[378758314,1755003116345,-492.5590184,0.00044109,120]
[378758315,1755003116355,-400.0,0.00044109,120]
[378758316,1755003116364,-400.0,0.00044109,120]
[378758317,1755003116373,-263.94688166,0.00044109,120]
[378758318,1755003116383,-400.0,0.00044109,120]
[378758319,1755003116393,-400.0,0.00044109,120]
[378758320,1755003116403,-485.48,0.00044109,120]
[378758321,1755003116412,-400.0,0.00044109,120]
[378758322,1755003116422,-400.0,0.00044109,120]
[378758323,1755003116432,-620.11,0.00044109,120]
[378758324,1755003116442,-422.97,0.00044109,120]
[378758325,1755003116451,-289.5513275,0.00044109,120]
[378758326,1755003116460,-407.76,0.00044109,120]
[378758327,1755003116470,-400.0,0.00044109,120]
[378758328,1755003116479,-400.0,0.00044109,120]
[378758329,1755003116489,-539.38923166,0.00044109,120]
[378758330,1755003116498,-400.0,0.00044109,120]
[378758331,1755003116508,-473.91,0.00044109,120]
[378758332,1755003116518,-400.0,0.00044109,120]
[378758333,1755003116527,-429.54,0.00044109,120]
[378758334,1755003116536,-359.96038167,0.00044109,120]
[378758335,1755003116546,-400.0,0.00044109,120]
[378758336,1755003116556,-400.0,0.00044109,120]
[378758337,1755003116566,-2095.41,0.00044109,120]
[378758338,1755003116575,-400.0,0.00044109,120]
[378758339,1755003116585,-530.95711407,0.00044109,120]
[378758340,1755003116595,-803.63,0.00044109,120]
[378758341,1755003116604,-403.57,0.00044109,120]
[378758342,1755003116614,-432.23,0.00044109,120]
[378758343,1755003116624,-400.0,0.00044109,120]
[378758344,1755003116637,-400.0,0.00044109,120]
[378758345,1755003116647,-400.0,0.00044109,120]
[378758346,1755003116657,-321.1112442,0.00044109,120]
[378758347,1755003116666,-400.0,0.00044109,120]
[378758348,1755003116676,-403.73,0.00044109,120]
[378758349,1755003116686,-506.69,0.00044109,120]
[378758350,1755003116698,-400.0,0.00044109,120]
[378758351,1755003116710,-400.0,0.00044109,120]
[378758352,1755003116720,-400.0,0.00044109,120]
[378758353,1755003116730,-400.0,0.00044109,120]
[378758354,1755003116739,-1369.1,0.00044109,120]
[378758355,1755003116749,-460.46,0.00044109,120]
[378758356,1755003116759,-1677.37,0.00044109,120]
[378758357,1755003116769,-360.43,0.00044109,120]
[378758358,1755003116779,-400.0,0.00044109,120]
[378758359,1755003116789,-638.32,0.00044109,120]
[378758360,1755003116800,-400.0,0.00044109,120]
[378758361,1755003116812,-400.0,0.00044109,120]
[378758362,1755003116822,-557.52,0.00044109,120]
[378758363,1755003116832,-720.04,0.00044109,120]
[378758364,1755003116841,-400.0,0.00044109,120]
[378758365,1755003116852,-1407.52,0.00044109,120]
[378758366,1755003116861,-400.0,0.00044109,120]
[378758367,1755003116871,-671.93,0.00044109,120]
[378758368,1755003116881,-400.0,0.00044109,120]
[378758369,1755003116891,-535.29,0.00044109,120]
[378758370,1755003116901,-400.0,0.00044109,120]
[378758371,1755003116911,-428.8743673,0.00044109,120]
[378758372,1755003116920,-537.89,0.00044109,120]
[378758373,1755003116930,-519.49,0.00044109,120]
[378758374,1755003116939,-641.09,0.00044109,120]
[378758375,1755003116949,-697.03,0.00044109,120]
[378758376,1755003116959,-740.0,0.00044109,120]
[378758377,1755003116969,-400.0,0.00044109,120]
[378758378,1755003116979,-494.78,0.00044109,120]
[378758379,1755003116989,-498.07,0.00044109,120]
[378758380,1755003116998,-400.0,0.00044109,120]
[378758381,1755003117008,-400.0,0.00044109,120]